[Event "Early-Titled-Tuesday-Blitz-June-18-2024"]
[Site "Chess.com"]
[Date "2024.06.18"]
[Round "6"]
[White "HajiyevKanan"]
[Black "mangochessgo"]
[Result "0-1"]
[WhiteElo "2522"]
[BlackElo "2671"]
[TimeControl "180+1"]
[EndTime "9:09:58 PDT"]
[Termination "mangochessgo won by resignation"]

1. d4 {[%clk 0:03:00.9]} 1... d6 {[%clk 0:02:58.5]} 2. Nf3 {[%clk 0:03:00.9]}
2... Nd7 {[%clk 0:02:58.4]} 3. g3 {[%clk 0:03:01.8]} 3... Ngf6 {[%clk
0:02:58.7]} 4. Bg2 {[%clk 0:03:02.2]} 4... g6 {[%clk 0:02:58.3]} 5. b3 {[%clk
0:03:02.7]} 5... Bg7 {[%clk 0:02:58.6]} 6. Bb2 {[%clk 0:03:03.1]} 6... O-O
{[%clk 0:02:58.7]} 7. O-O {[%clk 0:03:03.5]} 7... a5 {[%clk 0:02:58.5]} 8. a3
{[%clk 0:02:52.5]} 8... a4 {[%clk 0:02:56.1]} 9. b4 {[%clk 0:02:52.4]} 9... Nb6
{[%clk 0:02:53.9]} 10. Nbd2 {[%clk 0:02:51.7]} 10... d5 {[%clk 0:02:53.8]} 11.
Rc1 {[%clk 0:02:46.3]} 11... c6 {[%clk 0:02:50.6]} 12. e3 {[%clk 0:02:42.7]}
12... h6 {[%clk 0:02:43.3]} 13. c4 {[%clk 0:02:34]} 13... dxc4 {[%clk
0:02:43.1]} 14. Ne5 {[%clk 0:02:25.7]} 14... Be6 {[%clk 0:02:33.8]} 15. Ndxc4
{[%clk 0:02:19]} 15... Nxc4 {[%clk 0:02:32.9]} 16. Nxc4 {[%clk 0:02:19.2]} 16...
Bd5 {[%clk 0:02:32.6]} 17. Bf3 {[%clk 0:02:10]} 17... h5 {[%clk 0:02:28.4]} 18.
h4 {[%clk 0:02:09.7]} 18... Ne4 {[%clk 0:02:17.4]} 19. Kg2 {[%clk 0:02:05.4]}
19... Ra6 {[%clk 0:02:00.9]} 20. Qc2 {[%clk 0:01:58.3]} 20... Bxc4 {[%clk
0:01:58]} 21. Qxc4 {[%clk 0:01:29.7]} 21... Nd2 {[%clk 0:01:58]} 22. Qc2 {[%clk
0:01:24.8]} 22... Nxf1 {[%clk 0:01:57.4]} 23. Kxf1 {[%clk 0:01:23.5]} 23... Qd6
{[%clk 0:01:54.2]} 24. Kg2 {[%clk 0:01:23.4]} 24... e5 {[%clk 0:01:52.4]} 25.
Be2 {[%clk 0:01:18.5]} 25... Raa8 {[%clk 0:01:51.4]} 26. Rd1 {[%clk 0:01:07.2]}
26... exd4 {[%clk 0:01:48.4]} 27. Bxd4 {[%clk 0:01:06.1]} 27... Bxd4 {[%clk
0:01:47.5]} 28. Rxd4 {[%clk 0:01:07]} 28... Qe7 {[%clk 0:01:41.6]} 29. Bc4
{[%clk 0:01:06.9]} 29... Kg7 {[%clk 0:01:38.5]} 30. Qc3 {[%clk 0:01:04.4]} 30...
Qf6 {[%clk 0:01:32.9]} 31. Qc2 {[%clk 0:01:01.5]} 31... Rad8 {[%clk 0:01:27.7]}
32. Rf4 {[%clk 0:01:01.1]} 32... Qa1 {[%clk 0:01:17.3]} 33. b5 {[%clk
0:00:30.5]} 33... Rd6 {[%clk 0:01:09.7]} 34. bxc6 {[%clk 0:00:29.3]} 34... Rxc6
{[%clk 0:01:08.7]} 35. Qxa4 {[%clk 0:00:27.1]} 35... Rf6 {[%clk 0:01:06.6]} 36.
Rxf6 {[%clk 0:00:19.5]} 36... Qxf6 {[%clk 0:01:07.5]} 37. Qb3 {[%clk 0:00:20.2]}
37... b6 {[%clk 0:01:05.3]} 38. Bd5 {[%clk 0:00:19.8]} 38... Rc8 {[%clk
0:01:03.4]} 39. a4 {[%clk 0:00:15.6]} 39... Rc3 {[%clk 0:01:02.6]} 40. Qb5
{[%clk 0:00:14]} 40... Rc2 {[%clk 0:01:00.1]} 41. Bf3 {[%clk 0:00:13.1]} 41...
Rc5 {[%clk 0:00:57.9]} 42. Qb4 {[%clk 0:00:13]} 42... Rf5 {[%clk 0:00:57.7]} 43.
Qe4 {[%clk 0:00:12.3]} 43... Qb2 {[%clk 0:00:56.2]} 44. Qd4+ {[%clk 0:00:07.4]}
44... Qxd4 {[%clk 0:00:55.6]} 45. exd4 {[%clk 0:00:08.3]} 45... Ra5 {[%clk
0:00:55.2]} 46. Bc6 {[%clk 0:00:08.4]} 46... Kf6 {[%clk 0:00:54.6]} 47. Kf3
{[%clk 0:00:08.7]} 47... Ke6 {[%clk 0:00:53.8]} 48. Kf4 {[%clk 0:00:08.3]} 48...
Kd6 {[%clk 0:00:52.9]} 49. d5 {[%clk 0:00:04.8]} 49... Ra7 {[%clk 0:00:46]} 50.
f3 {[%clk 0:00:04.9]} 50... Re7 {[%clk 0:00:44.1]} 51. g4 {[%clk 0:00:05.4]}
51... Re5 {[%clk 0:00:37.2]} 52. Kg3 {[%clk 0:00:04.1]} 52... f6 {[%clk
0:00:34.8]} 53. Kf4 {[%clk 0:00:04.6]} 53... g5+ {[%clk 0:00:32.5]} 54. hxg5
{[%clk 0:00:04.3]} 54... fxg5+ {[%clk 0:00:32.5]} 55. Kg3 {[%clk 0:00:03.6]}
55... h4+ {[%clk 0:00:32.8]} 56. Kh3 {[%clk 0:00:03.4]} 56... Re3 {[%clk
0:00:31.9]} 57. Kg2 {[%clk 0:00:04]} 57... Re2+ {[%clk 0:00:32.4]} 58. Kh3
{[%clk 0:00:04.4]} 58... Rf2 {[%clk 0:00:30.4]} 59. Bb7 {[%clk 0:00:02.5]} 59...
Rxf3+ {[%clk 0:00:30.7]} 60. Kh2 {[%clk 0:00:03.3]} 60... Rc3 {[%clk 0:00:28.9]}
61. Bc6 {[%clk 0:00:04]} 61... Rg3 {[%clk 0:00:28.1]} 62. Bb7 {[%clk 0:00:03.2]}
62... Rxg4 {[%clk 0:00:28.2]} 0-1

[Event "Early-Titled-Tuesday-Blitz-June-18-2024"]
[Site "Chess.com"]
[Date "2024.06.18"]
[Round "6"]
[White "chessbaerchen"]
[Black "Murad_Ibrahimli"]
[Result "0-1"]
[WhiteElo "2687"]
[BlackElo "2919"]
[TimeControl "180+1"]
[EndTime "9:09:59 PDT"]
[Termination "Murad_Ibrahimli won by resignation"]

1. e4 {[%clk 0:03:00.9]} 1... c6 {[%clk 0:03:00.1]} 2. d4 {[%clk 0:02:59.7]}
2... d5 {[%clk 0:03:01]} 3. Nc3 {[%clk 0:02:59.8]} 3... dxe4 {[%clk 0:03:00.9]}
4. Nxe4 {[%clk 0:03:00.7]} 4... Bf5 {[%clk 0:03:01.3]} 5. Ng3 {[%clk 0:03:00.3]}
5... Bg6 {[%clk 0:03:01.9]} 6. Nh3 {[%clk 0:03:00.5]} 6... e6 {[%clk 0:03:01.6]}
7. Nf4 {[%clk 0:03:00.6]} 7... Bd6 {[%clk 0:03:02.3]} 8. c3 {[%clk 0:03:00.7]}
8... Qc7 {[%clk 0:02:59.5]} 9. Qf3 {[%clk 0:03:00.1]} 9... Nf6 {[%clk
0:02:49.6]} 10. h4 {[%clk 0:03:00]} 10... Bc2 {[%clk 0:02:50]} 11. Bd3 {[%clk
0:02:54.2]} 11... Bxd3 {[%clk 0:02:48.1]} 12. Nxd3 {[%clk 0:02:55.1]} 12... Nbd7
{[%clk 0:02:46.1]} 13. O-O {[%clk 0:02:52.2]} 13... O-O {[%clk 0:02:39.5]} 14.
h5 {[%clk 0:02:43.7]} 14... h6 {[%clk 0:02:39]} 15. Re1 {[%clk 0:02:39]} 15...
Rfe8 {[%clk 0:02:36.3]} 16. Ne4 {[%clk 0:02:24.1]} 16... Nxe4 {[%clk 0:02:35.8]}
17. Qxe4 {[%clk 0:02:21.4]} 17... Qa5 {[%clk 0:02:33.1]} 18. Qf3 {[%clk
0:02:12.7]} 18... e5 {[%clk 0:02:25.6]} 19. Qf5 {[%clk 0:01:57.1]} 19... Rad8
{[%clk 0:02:20.7]} 20. Bf4 {[%clk 0:01:45.9]} 20... Qb5 {[%clk 0:01:49.7]} 21.
dxe5 {[%clk 0:01:37.7]} 21... Bb8 {[%clk 0:01:39.6]} 22. Rad1 {[%clk 0:01:23.2]}
22... Nf8 {[%clk 0:01:38.5]} 23. Bg3 {[%clk 0:01:11.8]} 23... Ne6 {[%clk
0:01:35.9]} 24. Re3 {[%clk 0:00:56.5]} 24... c5 {[%clk 0:01:30.4]} 25. Rb1
{[%clk 0:00:31.3]} 25... Qa4 {[%clk 0:01:17.9]} 26. a3 {[%clk 0:00:22.2]} 26...
Qc2 {[%clk 0:01:18.1]} 27. Rc1 {[%clk 0:00:20.5]} 27... Qb3 {[%clk 0:01:18.3]}
28. Re2 {[%clk 0:00:19.4]} 28... c4 {[%clk 0:01:14.9]} 29. Nf4 {[%clk
0:00:18.8]} 29... Rd1+ {[%clk 0:01:07.3]} 30. Re1 {[%clk 0:00:18.5]} 30... Rxe1+
{[%clk 0:00:42]} 31. Rxe1 {[%clk 0:00:18]} 31... Ng5 {[%clk 0:00:42.6]} 32. Qb1
{[%clk 0:00:14.4]} 32... Rxe5 {[%clk 0:00:41.3]} 33. Rxe5 {[%clk 0:00:14.6]}
33... Bxe5 {[%clk 0:00:42.2]} 34. Qc1 {[%clk 0:00:15]} 34... Ne4 {[%clk
0:00:40.3]} 35. Bh2 {[%clk 0:00:15.1]} 35... Qb6 {[%clk 0:00:32.6]} 36. Nh3
{[%clk 0:00:14]} 36... Bxh2+ {[%clk 0:00:31.9]} 37. Kxh2 {[%clk 0:00:14.9]}
37... Nxf2 {[%clk 0:00:32.4]} 38. Qd2 {[%clk 0:00:15.5]} 38... Nd3 {[%clk
0:00:29.4]} 39. b4 {[%clk 0:00:14.1]} 39... Qd6+ {[%clk 0:00:28]} 40. g3 {[%clk
0:00:13.7]} 40... Qe5 {[%clk 0:00:27.8]} 41. Kg2 {[%clk 0:00:11.9]} 41... Qxh5
{[%clk 0:00:26]} 42. Nf4 {[%clk 0:00:10.8]} 42... Qf5 {[%clk 0:00:24.8]} 43. Qe3
{[%clk 0:00:08.3]} 43... Nxf4+ {[%clk 0:00:22.5]} 44. gxf4 {[%clk 0:00:09.2]}
44... Qc2+ {[%clk 0:00:21]} 45. Kg3 {[%clk 0:00:09.3]} 45... Qd3 {[%clk
0:00:20.5]} 46. Kf3 {[%clk 0:00:08]} 46... Qxe3+ {[%clk 0:00:20.4]} 47. Kxe3
{[%clk 0:00:08.9]} 47... h5 {[%clk 0:00:21.3]} 48. Kd4 {[%clk 0:00:08.5]} 48...
f5 {[%clk 0:00:17.7]} 49. a4 {[%clk 0:00:06.5]} 49... Kf7 {[%clk 0:00:17.2]} 50.
Ke3 {[%clk 0:00:06.6]} 50... Kf6 {[%clk 0:00:14.9]} 51. Kf3 {[%clk 0:00:07.2]}
51... g5 {[%clk 0:00:15.4]} 52. fxg5+ {[%clk 0:00:05.1]} 52... Kxg5 {[%clk
0:00:16.3]} 53. b5 {[%clk 0:00:03.9]} 53... h4 {[%clk 0:00:17.2]} 54. a5 {[%clk
0:00:04.4]} 54... b6 {[%clk 0:00:17.6]} 55. axb6 {[%clk 0:00:03.4]} 55... axb6
{[%clk 0:00:18.5]} 56. Ke3 {[%clk 0:00:02.7]} 56... h3 {[%clk 0:00:18.7]} 57.
Kf3 {[%clk 0:00:03.4]} 57... f4 {[%clk 0:00:19.2]} 58. Kf2 {[%clk 0:00:03.7]}
58... Kg4 {[%clk 0:00:19.4]} 0-1

[Event "Early-Titled-Tuesday-Blitz-June-18-2024"]
[Site "Chess.com"]
[Date "2024.06.18"]
[Round "6"]
[White "Niteshch"]
[Black "Zq1"]
[Result "1-0"]
[WhiteElo "2352"]
[BlackElo "2502"]
[TimeControl "180+1"]
[EndTime "9:09:59 PDT"]
[Termination "Niteshch won on time"]

1. e4 {[%clk 0:03:00.9]} 1... c5 {[%clk 0:02:54]} 2. Nf3 {[%clk 0:03:00.4]} 2...
d6 {[%clk 0:02:54]} 3. d4 {[%clk 0:03:00.3]} 3... cxd4 {[%clk 0:02:54]} 4. Nxd4
{[%clk 0:03:01.2]} 4... Nf6 {[%clk 0:02:53.7]} 5. f3 {[%clk 0:03:01.8]} 5... e6
{[%clk 0:02:49.7]} 6. c4 {[%clk 0:02:59.4]} 6... Be7 {[%clk 0:02:49.7]} 7. Nc3
{[%clk 0:02:58.9]} 7... O-O {[%clk 0:02:50.1]} 8. Be3 {[%clk 0:02:58.7]} 8... b6
{[%clk 0:02:50.4]} 9. Be2 {[%clk 0:02:57.7]} 9... Bb7 {[%clk 0:02:50.6]} 10. O-O
{[%clk 0:02:57.8]} 10... a6 {[%clk 0:02:50.9]} 11. b3 {[%clk 0:02:51]} 11... Qc7
{[%clk 0:02:48.4]} 12. Kh1 {[%clk 0:02:46.5]} 12... Nbd7 {[%clk 0:02:48.3]} 13.
g4 {[%clk 0:02:40.9]} 13... Rac8 {[%clk 0:02:47.4]} 14. g5 {[%clk 0:02:40]}
14... Ne8 {[%clk 0:02:35.6]} 15. Rc1 {[%clk 0:02:33]} 15... g6 {[%clk
0:02:34.6]} 16. f4 {[%clk 0:02:28.7]} 16... Ng7 {[%clk 0:02:32.6]} 17. Bf3
{[%clk 0:02:24.7]} 17... Nc5 {[%clk 0:02:28]} 18. f5 {[%clk 0:02:15.7]} 18... f6
{[%clk 0:02:00.1]} 19. b4 {[%clk 0:02:01]} 19... Nd7 {[%clk 0:01:58.9]} 20. fxe6
{[%clk 0:01:58.7]} 20... Ne5 {[%clk 0:01:47.7]} 21. Nd5 {[%clk 0:01:38.4]} 21...
Qd8 {[%clk 0:01:45.2]} 22. gxf6 {[%clk 0:01:25.6]} 22... Bxf6 {[%clk 0:01:42.5]}
23. Be2 {[%clk 0:01:21.2]} 23... Ne8 {[%clk 0:01:16.3]} 24. Bh6 {[%clk
0:01:07.8]} 24... Bg7 {[%clk 0:01:15.1]} 25. Rxf8+ {[%clk 0:01:04.7]} 25... Bxf8
{[%clk 0:01:10.6]} 26. Bxf8 {[%clk 0:01:04.1]} 26... Bxd5 {[%clk 0:01:09.2]} 27.
cxd5 {[%clk 0:00:47]} 27... Rxc1 {[%clk 0:00:57.6]} 28. Qxc1 {[%clk 0:00:44.9]}
28... Kxf8 {[%clk 0:00:57.6]} 29. Qh6+ {[%clk 0:00:45]} 29... Kg8 {[%clk
0:00:55.6]} 30. Bxa6 {[%clk 0:00:33]} 30... Qf6 {[%clk 0:00:47.8]} 31. Kg2
{[%clk 0:00:18.5]} 31... Ng7 {[%clk 0:00:40]} 32. Be2 {[%clk 0:00:14.7]} 32...
Qe7 {[%clk 0:00:22.8]} 33. Nc6 {[%clk 0:00:11.3]} 33... Nxc6 {[%clk 0:00:19.7]}
34. dxc6 {[%clk 0:00:11.4]} 34... Qxe6 {[%clk 0:00:17.8]} 35. Qe3 {[%clk
0:00:07.6]} 35... Kf8 {[%clk 0:00:15.5]} 36. Qxb6 {[%clk 0:00:06.6]} 36... Qxe4+
{[%clk 0:00:14.8]} 37. Bf3 {[%clk 0:00:06.8]} 37... Qc2+ {[%clk 0:00:06.8]} 38.
Qf2 {[%clk 0:00:06.2]} 38... Qc1 {[%clk 0:00:05.1]} 39. Bd5+ {[%clk 0:00:05.6]}
39... Nf5 {[%clk 0:00:04.1]} 40. Be4 {[%clk 0:00:05.3]} 40... Ke7 {[%clk
0:00:03]} 41. Bxf5 {[%clk 0:00:05.3]} 41... gxf5 {[%clk 0:00:02.9]} 42. Qxf5
{[%clk 0:00:05.1]} 42... Qxc6+ {[%clk 0:00:02.8]} 43. Kg3 {[%clk 0:00:03.8]}
43... Qc3+ {[%clk 0:00:02.4]} 44. Kg2 {[%clk 0:00:03.1]} 44... Qxb4 {[%clk
0:00:02.4]} 45. Qxh7+ {[%clk 0:00:02.9]} 45... Ke6 {[%clk 0:00:02.8]} 46. Qg6+
{[%clk 0:00:03]} 46... Ke7 {[%clk 0:00:02]} 47. Qg7+ {[%clk 0:00:03]} 47... Ke6
{[%clk 0:00:02.3]} 48. Qg6+ {[%clk 0:00:03.2]} 48... Ke7 {[%clk 0:00:02.6]} 49.
Qd3 {[%clk 0:00:02.4]} 49... Qa5 {[%clk 0:00:01.7]} 50. Qe4+ {[%clk 0:00:02.3]}
50... Kf6 {[%clk 0:00:01.2]} 51. Qf3+ {[%clk 0:00:02.4]} 51... Ke7 {[%clk
0:00:01.5]} 52. Qe2+ {[%clk 0:00:02.6]} 52... Kf6 {[%clk 0:00:01.6]} 53. h4
{[%clk 0:00:03]} 53... d5 {[%clk 0:00:01.4]} 54. h5 {[%clk 0:00:02.7]} 54... d4
{[%clk 0:00:01.4]} 55. Qf3+ {[%clk 0:00:02.9]} 55... Ke5 {[%clk 0:00:01]} 56.
Qg4 {[%clk 0:00:02.8]} 1-0

[Event "Early-Titled-Tuesday-Blitz-June-18-2024"]
[Site "Chess.com"]
[Date "2024.06.18"]
[Round "6"]
[White "Rsnr"]
[Black "Rud_Makarian"]
[Result "1/2-1/2"]
[WhiteElo "2914"]
[BlackElo "3066"]
[TimeControl "180+1"]
[EndTime "9:10:01 PDT"]
[Termination "Game drawn by repetition"]

1. d4 {[%clk 0:02:59.9]} 1... Nf6 {[%clk 0:02:57.8]} 2. c4 {[%clk 0:03:00.5]}
2... e6 {[%clk 0:02:58.2]} 3. Nf3 {[%clk 0:03:01.1]} 3... d5 {[%clk 0:02:58.6]}
4. g3 {[%clk 0:03:01.6]} 4... Bb4+ {[%clk 0:02:57.1]} 5. Bd2 {[%clk 0:03:02]}
5... Be7 {[%clk 0:02:57.2]} 6. Bg2 {[%clk 0:03:02.6]} 6... O-O {[%clk
0:02:57.4]} 7. O-O {[%clk 0:03:03.3]} 7... Nbd7 {[%clk 0:02:58.2]} 8. Qc2 {[%clk
0:03:03.7]} 8... c6 {[%clk 0:02:58.8]} 9. Bf4 {[%clk 0:03:04]} 9... a5 {[%clk
0:02:56.6]} 10. h4 {[%clk 0:03:04.3]} 10... h6 {[%clk 0:02:56.1]} 11. Nbd2
{[%clk 0:03:03.2]} 11... Ng4 {[%clk 0:02:56.1]} 12. e4 {[%clk 0:02:57.9]} 12...
g5 {[%clk 0:02:41]} 13. hxg5 {[%clk 0:02:33.4]} 13... hxg5 {[%clk 0:02:41.9]}
14. Bh3 {[%clk 0:02:34.1]} 14... gxf4 {[%clk 0:02:26.4]} 15. Bxg4 {[%clk
0:02:33.9]} 15... fxg3 {[%clk 0:01:39.8]} 16. fxg3 {[%clk 0:02:34.8]} 16... Kg7
{[%clk 0:01:30.2]} 17. e5 {[%clk 0:01:21.9]} 17... Nb6 {[%clk 0:01:19]} 18. Kg2
{[%clk 0:01:20.5]} 18... Rh8 {[%clk 0:01:09.3]} 19. Rh1 {[%clk 0:01:20.6]} 19...
Bd7 {[%clk 0:01:09.8]} 20. Rxh8 {[%clk 0:01:14.6]} 20... Qxh8 {[%clk 0:01:10.7]}
21. Rh1 {[%clk 0:01:15]} 21... Qg8 {[%clk 0:01:11.1]} 22. c5 {[%clk 0:01:14.9]}
22... Nc4 {[%clk 0:01:09.4]} 23. Nxc4 {[%clk 0:01:13.3]} 23... dxc4 {[%clk
0:01:10.3]} 24. Nd2 {[%clk 0:01:05.3]} 24... Kf8 {[%clk 0:00:59.5]} 25. Qe4
{[%clk 0:00:57.3]} 25... Ke8 {[%clk 0:00:44.2]} 26. Nxc4 {[%clk 0:00:58]} 26...
Kd8 {[%clk 0:00:44.9]} 27. Rh7 {[%clk 0:00:35.3]} 27... Kc7 {[%clk 0:00:42.2]}
28. Nd6 {[%clk 0:00:35]} 28... Rf8 {[%clk 0:00:36]} 29. Bh5 {[%clk 0:00:30.7]}
29... Bxd6 {[%clk 0:00:32.8]} 30. cxd6+ {[%clk 0:00:30.8]} 30... Kb8 {[%clk
0:00:29.2]} 31. Rh6 {[%clk 0:00:12.9]} 31... Qg5 {[%clk 0:00:24.9]} 32. Qf4
{[%clk 0:00:13.3]} 32... Qg8 {[%clk 0:00:17.8]} 33. Rf6 {[%clk 0:00:13.4]} 33...
c5 {[%clk 0:00:13.3]} 34. Rxf7 {[%clk 0:00:08.4]} 34... Rxf7 {[%clk 0:00:11.1]}
35. Qxf7 {[%clk 0:00:09.3]} 35... Bc6+ {[%clk 0:00:11.5]} 36. Kh3 {[%clk
0:00:09.8]} 36... Qg5 {[%clk 0:00:10.9]} 37. dxc5 {[%clk 0:00:06.2]} 37... Qxe5
{[%clk 0:00:04]} 38. Bf3 {[%clk 0:00:04.1]} 38... Bxf3 {[%clk 0:00:03]} 39. Qxf3
{[%clk 0:00:05]} 39... Qxc5 {[%clk 0:00:03.2]} 40. d7 {[%clk 0:00:04.8]} 40...
Kc7 {[%clk 0:00:02.8]} 41. Qd3 {[%clk 0:00:03.4]} 41... Qh5+ {[%clk 0:00:02.5]}
42. Kg2 {[%clk 0:00:03.8]} 42... Kd8 {[%clk 0:00:03]} 43. Qd6 {[%clk 0:00:02.9]}
43... Qe2+ {[%clk 0:00:03.3]} 44. Kh3 {[%clk 0:00:03.7]} 44... Qh5+ {[%clk
0:00:03.3]} 45. Kg2 {[%clk 0:00:04.3]} 45... Qe2+ {[%clk 0:00:03.8]} 46. Kh3
{[%clk 0:00:05.1]} 46... Qh5+ {[%clk 0:00:04.2]} 47. Kg2 {[%clk 0:00:05.4]}
1/2-1/2

[Event "Early-Titled-Tuesday-Blitz-June-18-2024"]
[Site "Chess.com"]
[Date "2024.06.18"]
[Round "6"]
[White "Giantgoogachess"]
[Black "RobertoJBM"]
[Result "1-0"]
[WhiteElo "2447"]
[BlackElo "2770"]
[TimeControl "180+1"]
[EndTime "9:10:01 PDT"]
[Termination "Giantgoogachess won by resignation"]

1. Nf3 {[%clk 0:03:00.9]} 1... d5 {[%clk 0:03:00]} 2. g3 {[%clk 0:02:59.9]} 2...
c6 {[%clk 0:02:59]} 3. Bg2 {[%clk 0:03:00.3]} 3... Bg4 {[%clk 0:02:58.6]} 4. O-O
{[%clk 0:03:00.1]} 4... Nd7 {[%clk 0:02:57.8]} 5. d3 {[%clk 0:02:58]} 5... e6
{[%clk 0:02:57.3]} 6. h3 {[%clk 0:02:57.7]} 6... Bh5 {[%clk 0:02:56.4]} 7. Nbd2
{[%clk 0:02:55]} 7... Bd6 {[%clk 0:02:56.3]} 8. Qe1 {[%clk 0:02:54.7]} 8... Ne7
{[%clk 0:02:56]} 9. e4 {[%clk 0:02:54.9]} 9... O-O {[%clk 0:02:55.2]} 10. b3
{[%clk 0:02:52.5]} 10... e5 {[%clk 0:02:53.9]} 11. Bb2 {[%clk 0:02:29.2]} 11...
d4 {[%clk 0:02:49]} 12. Nc4 {[%clk 0:02:26.6]} 12... Bc7 {[%clk 0:02:48]} 13. a4
{[%clk 0:02:14.8]} 13... c5 {[%clk 0:02:46.4]} 14. Nh4 {[%clk 0:02:10.4]} 14...
f6 {[%clk 0:02:44]} 15. f4 {[%clk 0:02:09]} 15... Nc6 {[%clk 0:02:31.6]} 16. g4
{[%clk 0:02:05.4]} 16... Bf7 {[%clk 0:02:30.1]} 17. f5 {[%clk 0:02:04.5]} 17...
a6 {[%clk 0:02:23.3]} 18. a5 {[%clk 0:01:57.6]} 18... g5 {[%clk 0:02:11.7]} 19.
fxg6 {[%clk 0:01:19.5]} 19... hxg6 {[%clk 0:02:10.5]} 20. g5 {[%clk 0:01:13.3]}
20... fxg5 {[%clk 0:02:08.6]} 21. Nf3 {[%clk 0:01:13.2]} 21... Be6 {[%clk
0:01:47.8]} 22. Qg3 {[%clk 0:01:06.8]} 22... g4 {[%clk 0:01:41.6]} 23. hxg4
{[%clk 0:00:52.4]} 23... Rf4 {[%clk 0:01:30]} 24. Nh2 {[%clk 0:00:38.3]} 24...
Qe7 {[%clk 0:01:18.6]} 25. Bc1 {[%clk 0:00:35.2]} 25... Raf8 {[%clk 0:01:17.5]}
26. Bd2 {[%clk 0:00:25.2]} 26... g5 {[%clk 0:01:16.8]} 27. Bxf4 {[%clk
0:00:21.5]} 27... gxf4 {[%clk 0:01:16.2]} 28. Qh3 {[%clk 0:00:18.8]} 28... Nf6
{[%clk 0:01:15.4]} 29. Bf3 {[%clk 0:00:19.2]} 29... Nh7 {[%clk 0:01:15.3]} 30.
Qh6 {[%clk 0:00:17.3]} 30... Rf6 {[%clk 0:01:06.7]} 31. Qh5 {[%clk 0:00:13.9]}
31... Bf7 {[%clk 0:00:57.7]} 32. Qh4 {[%clk 0:00:14]} 32... Rg6 {[%clk
0:00:55.5]} 33. Qxe7 {[%clk 0:00:13.4]} 33... Nxe7 {[%clk 0:00:56.4]} 34. Kf2
{[%clk 0:00:13.1]} 34... Ng5 {[%clk 0:00:56.3]} 35. Rh1 {[%clk 0:00:13]} 35...
Be6 {[%clk 0:00:52.6]} 36. Rag1 {[%clk 0:00:11.4]} 36... Nh3+ {[%clk 0:00:47.3]}
37. Kf1 {[%clk 0:00:12]} 37... Nxg1 {[%clk 0:00:48.2]} 38. Rxg1 {[%clk
0:00:12.4]} 38... Rh6 {[%clk 0:00:46.6]} 39. Kg2 {[%clk 0:00:12.1]} 39... Nc6
{[%clk 0:00:45.6]} 40. g5 {[%clk 0:00:12.4]} 40... Rh4 {[%clk 0:00:40.1]} 41.
Nf1 {[%clk 0:00:09.6]} 41... Nxa5 {[%clk 0:00:37.8]} 42. Ncd2 {[%clk 0:00:09.5]}
42... Nc6 {[%clk 0:00:37.3]} 43. Kf2 {[%clk 0:00:10.1]} 43... Kg7 {[%clk
0:00:36.5]} 44. Be2 {[%clk 0:00:10.5]} 44... Ne7 {[%clk 0:00:34.9]} 45. Nf3
{[%clk 0:00:11.2]} 45... Rh8 {[%clk 0:00:35.1]} 46. g6 {[%clk 0:00:10.6]} 46...
Nxg6 {[%clk 0:00:32.2]} 47. Ng5 {[%clk 0:00:11.2]} 47... Bg8 {[%clk 0:00:31.8]}
48. Bg4 {[%clk 0:00:11.7]} 48... Kf6 {[%clk 0:00:31.8]} 49. Bf5 {[%clk
0:00:10.9]} 49... Ne7 {[%clk 0:00:31.4]} 50. Bd7 {[%clk 0:00:08.9]} 50... Rh6
{[%clk 0:00:21.5]} 51. Nf3 {[%clk 0:00:06.6]} 51... Rg6 {[%clk 0:00:20.3]} 52.
Rh1 {[%clk 0:00:06.4]} 52... Be6 {[%clk 0:00:18.7]} 53. Be8 {[%clk 0:00:05.7]}
53... Bf7 {[%clk 0:00:14.9]} 54. Bxf7 {[%clk 0:00:04.9]} 54... Kxf7 {[%clk
0:00:15.8]} 55. N1h2 {[%clk 0:00:05.3]} 55... Rh6 {[%clk 0:00:13.6]} 56. Rg1
{[%clk 0:00:03.8]} 56... Ke8 {[%clk 0:00:09.2]} 57. Ng4 {[%clk 0:00:03.9]} 57...
Rh5 {[%clk 0:00:07]} 58. Nf6+ {[%clk 0:00:04.1]} 1-0